bitfinex-derivatives/quotes_ETHF0:USTF0_20240917
["timestamp","ask_amount","ask_price","bid_price","bid_amount"]
[1726611471860,2.28335,2345.2,2344.7,4.0248]
[1726611471861,1.0658,2345.1,2344.7,4.0248]
[1726611472062,0.42635,2344.9,2344.8,0.42636]
[1726611474762,0.42636,2344.9,2344.7,4.45117]
[1726611477751,1.0658,2345.1,2344.7,4.45117]
[1726611477954,0.4111,2344.8,2344.6,0.42639]
[1726611478159,0.83378,2344.7,2344.6,0.42639]
[1726611478363,0.83378,2344.7,2344.6,1.00122136]
[1726611478564,0.4264,2344.6,2344.5,1.23271]
[1726611478761,0.83379,2344.7,2344.6,0.4264]
[1726611479167,0.83379,2344.7,2344.6,1.00123761]
[1726611481667,0.83379,2344.7,2344.6,2.54122682]
[1726611481865,0.83379,2344.7,2344.6,5.74902682]
[1726611482061,0.83379,2344.7,2344.6,5.74901506]
[1726611482265,0.83379,2344.7,2344.6,6.66871915]
[1726611482463,0.83379,2344.7,2344.6,5.74901506]
[1726611483271,0.83379,2344.7,2344.6,5.32261506]
[1726611483672,0.83379,2344.7,2344.6,3.78261506]
[1726611485266,0.83379,2344.7,2344.6,0.57481506]
[1726611486266,0.83379,2344.7,2344.6,1.494568]
[1726611486874,0.83379,2344.7,2344.5,2.35082714]
[1726611486875,0.4264,2344.6,2344.5,2.35082714]
[1726611487174,0.4264,2344.6,2344.5,3.84542346]
[1726611488571,0.4264,2344.6,2344.5,2.35082714]
[1726611488771,0.4264,2344.6,2344.5,3.84542692]
[1726611490673,1.49241,2344.6,2344.5,0.97314607]
[1726611490972,1.49241,2344.6,2344.2,2.23625429]
[1726611490973,0.42644,2344.4,2344.2,3.50008714]
[1726611491273,0.42644,2344.4,2344.3,1.00169859]
[1726611491675,0.42644,2344.4,2344.3,1.92151473]
[1726611491873,0.42644,2344.4,2344.3,1.92150297]
[1726611492377,0.42644,2344.4,2344.3,1.00169028]
[1726611492674,6.65964,2344.4,2344.3,0.57488355]
[1726611492974,0.42647,2344.2,2344.1,3.6346]
[1726611493268,0.42647,2344.2,2344.1,3.2078]
[1726611493773,0.85057,2344.2,2344.1,3.78273797]
[1726611494070,0.85057,2344.2,2344.1,0.57493797]
[1726611495668,0.4241,2344.2,2344.1,0.57493797]
[1726611496576,0.4241,2344.2,2344.0,2.39331]
[1726611496774,0.4241,2344.2,2344.1,0.57495642]
[1726611498275,0.85057,2344.2,2344.1,0.57495642]
[1726611498465,0.42649,2344.1,2344.0,1.9668]
[1726611498666,0.85059,2344.2,2344.0,2.96827836]
[1726611498963,0.85059,2344.2,2344.0,2.39331]
[1726611499366,0.42649,2344.1,2344.0,1.9668]
[1726611499663,0.4241,2344.2,2344.0,2.54176541]
[1726611499870,0.4241,2344.2,2343.9,1.96014714]
[1726611499871,1.54,2344.1,2343.9,1.11812714]
[1726611500066,1.54,2344.1,2343.7,0.4031]
[1726611500067,0.3985,2344.0,2343.7,0.4031]
[1726611500270,0.3982,2343.9,2343.7,0.4031]
[1726611500474,0.42655,2343.8,2343.7,0.4031]
[1726611502175,1.21924,2343.9,2343.7,0.4031]
[1726611506275,1.21924,2343.9,2343.7,0.82966]
[1726611506576,0.3985,2344.0,2343.8,1.54]
[1726611506577,0.42652,2344.0,2343.8,1.54]
[1726611506775,0.84912,2344.0,2343.8,1.54]
[1726611507474,0.42652,2344.0,2343.8,1.96654]
[1726611507685,0.42652,2344.0,2343.9,0.4107]
[1726611508679,3.2078,2344.1,2344.0,0.42651]
[1726611508873,3.2078,2344.1,2344.0,0.85101]
[1726611509069,3.2078,2344.1,2344.0,1.27041]
[1726611509274,3.63429,2344.1,2344.0,0.8439]
[1726611509679,3.2078,2344.1,2344.0,1.27041]
[1726611511279,3.63428,2344.2,2344.0,1.27041]
[1726611511778,3.2078,2344.2,2344.1,0.42649]
[1726611511980,3.2078,2344.2,2344.0,0.8439]
[1726611511981,0.4048,2344.4,2344.0,2.8104]
[1726611512277,0.42648,2344.2,2344.0,1.2704]
[1726611512465,0.42649,2344.1,2344.0,0.8439]
[1726611512669,0.84239,2344.1,2344.0,0.8439]
[1726611513078,0.4159,2344.1,2344.0,1.27041]
[1726611515778,2.60607,2344.5,2344.1,0.42649]
[1726611515980,0.4095,2344.4,2344.1,0.42649]
[1726611516370,0.42647,2344.3,2344.1,0.42649]
[1726611520186,0.42647,2344.3,2344.2,0.42647]
[1726611520386,0.42647,2344.2,2344.1,0.42648]
[1726611520774,0.4095,2344.4,2344.3,0.42645]
[1726611520775,0.42645,2344.4,2344.3,0.42645]
[1726611520979,0.42644,2344.4,2344.3,0.42645]
[1726611525094,0.42644,2344.4,2344.2,0.42646]
[1726611525296,0.42644,2344.4,2344.0,2.3839]
[1726611525297,2.60606,2344.5,2344.1,0.42648]
[1726611525496,0.83467,2344.3,2344.1,0.42648]
[1726611525697,0.83467,2344.3,2344.2,0.42647]
[1726611526803,0.83467,2344.3,2344.0,1.27039]
[1726611526804,0.42648,2344.2,2344.0,1.27039]
[1726611526998,0.42649,2344.1,2344.0,0.8439]
[1726611527303,0.42656,2343.8,2343.5,4.32592714]
[1726611527490,1.96656,2343.8,2343.7,0.4016]
[1726611527796,1.96656,2343.8,2343.6,0.4146]
[1726611528297,0.42654,2343.9,2343.6,0.84118]
[1726611528497,0.42654,2343.9,2343.6,2.38118]
[1726611528689,0.4227,2344.0,2343.6,1.9546]
[1726611528891,0.84922,2344.0,2343.8,1.54]
[1726611529097,0.42653,2343.9,2343.7,0.42655]
[1726611529294,0.84922,2344.0,2343.8,0.4016]
[1726611533898,0.42653,2343.9,2343.8,0.4016]
[1726611538207,0.42653,2343.9,2343.8,0.82815]
[1726611541011,0.42653,2343.9,2343.8,0.4016]
[1726611542805,0.42656,2343.7,2343.6,5.58897]
[1726611543012,0.42656,2343.7,2343.6,0.8254]
[1726611543205,0.42656,2343.7,2343.6,0.98586288]
[1726611543406,0.81546,2343.7,2343.6,0.98586288]
[1726611544308,5.72255,2343.7,2343.3,1.11812714]
[1726611544612,5.72255,2343.7,2343.2,4.88499072]
[1726611544613,2.78296686,2343.5,2343.2,1.96665]
[1726611544800,0.42664,2343.3,2343.2,1.54]
[1726611547510,0.42666,2343.2,2343.1,0.8027]
[1726611550003,0.42666,2343.2,2343.0,0.4235]
[1726611550004,0.42669,2343.0,2342.9,3.2078]
[1726611550209,0.42669,2343.0,2342.9,3.6026]
[1726611550512,0.42669,2343.0,2342.9,0.3948]
[1726611551714,0.42671,2342.9,2342.8,0.4083]
[1726611553205,0.42673,2342.8,2342.7,0.4172]
[1726611553408,4.6898,2342.8,2342.5,0.3876]
[1726611553608,0.42676,2342.6,2342.5,0.3876]
[1726611554010,1.9618,2342.8,2342.5,0.3876]
[1726611554217,0.42676,2342.6,2342.5,0.3876]
[1726611555307,0.42676,2342.6,2342.4,0.4172]
[1726611556417,0.42678,2342.5,2342.4,0.4172]
[1726611558217,1.96677,2342.6,2342.4,0.4172]
[1726611558513,0.42678,2342.5,2342.4,0.4172]
[1726611560108,0.85458,2342.5,2342.4,0.4172]
[1726611563018,0.85458,2342.5,2342.4,0.8393]
[1726611568917,0.42678,2342.6,2342.5,0.42678]
[1726611569116,0.42678,2342.6,2342.4,1.26609]
[1726611569514,0.8087,2342.9,2342.7,0.42674]
[1726611569709,0.42672,2342.9,2342.8,0.83293]
[1726611569909,3.2078,2343.2,2343.1,0.42667]
[1726611570110,3.2078,2343.2,2343.1,3.2078]
[1726611570111,0.42666,2343.2,2343.1,3.2078]
[1726611570723,1.96666,2343.2,2343.1,3.2078]
[1726611571424,4.155,2343.4,2343.2,0.42665]
[1726611571625,1.54,2343.4,2343.3,0.7966]
[1726611571825,1.96662,2343.4,2343.3,0.7966]
[1726611572419,0.42662,2343.4,2343.3,0.7966]
[1726611573821,1.96661,2343.5,2343.3,0.7966]
[1726611574026,0.42662,2343.4,2343.3,0.7966]
[1726611574521,0.42662,2343.4,2343.1,0.42666]
[1726611574726,0.42662,2343.4,2343.1,1.25026]
[1726611575127,0.42662,2343.4,2343.2,0.42665]
[1726611575324,0.42674,2342.8,2342.5,0.42677]
[1726611575524,3.2078,2342.9,2342.8,0.42672]
[1726611575838,0.42668,2343.1,2342.8,0.42672]
[1726611576022,0.42668,2343.1,2342.9,0.42671]
[1726611576221,0.42668,2343.1,2342.8,0.42672]
[1726611576433,0.42669,2343.0,2342.8,0.42672]
[1726611576627,4.7478,2343.2,2342.8,0.42672]
[1726611576829,0.4267,2343.0,2342.8,0.42672]
[1726611577423,4.7478,2343.2,2342.7,0.42673]
[1726611577627,0.42671,2343.0,2342.7,0.42673]
[1726611577829,0.42671,2342.9,2342.7,0.42673]
[1726611578229,0.4267,2343.0,2342.7,0.42673]
[1726611578629,0.42672,2342.9,2342.7,0.42673]
[1726611579030,6.5378,2343.2,2342.7,0.42673]
[1726611579232,0.42671,2342.9,2342.7,0.42673]
[1726611581135,0.42672,2342.9,2342.7,0.42675]
[1726611581828,7.598,2342.8,2342.0,2.03857446]
[1726611582031,7.598,2342.8,2342.3,0.3876]
[1726611582032,6.5378,2342.5,2342.3,0.3876]
[1726611582229,0.4268,2342.4,2342.3,0.3876]
[1726611586533,3.2078,2342.5,2342.3,0.3876]
[1726611586534,0.4268,2342.5,2342.3,0.3876]
[1726611586740,0.42678,2342.6,2342.3,0.81441]
[1726611586929,4.27463,2342.8,2342.3,0.81441]
[1726611587126,0.42678,2342.6,2342.3,0.81441]
[1726611587835,0.42678,2342.6,2342.4,0.4268]
[1726611588039,0.42677,2342.6,2342.4,0.4268]
[1726611588235,0.42677,2342.6,2342.5,0.8213]
[1726611589930,0.3931,2343.1,2342.6,0.42676]
[1726611589931,10.38747686,2343.1,2342.6,0.42676]
[1726611590132,0.42673,2342.8,2342.7,0.4185]
[1726611594447,0.42672,2342.9,2342.7,0.4185]
[1726611594741,3.2078,2343.0,2342.7,0.4185]
[1726611594742,0.42673,2342.8,2342.7,0.4185]
[1726611595835,3.2078,2343.0,2342.7,0.4185]
[1726611596040,0.42672,2342.9,2342.7,0.84525]
[1726611596238,0.42673,2342.8,2342.7,0.4185]
[1726611596437,0.42672,2342.9,2342.7,0.4185]
[1726611596640,3.2078,2343.0,2342.7,0.4185]
[1726611597237,0.42673,2342.8,2342.7,0.4185]
[1726611598437,1.96673,2342.8,2342.7,0.4185]
[1726611598944,0.42673,2342.8,2342.7,0.4185]
[1726611599138,1.54,2342.9,2342.7,0.4185]
[1726611600136,0.42673,2342.8,2342.7,0.4185]
[1726611602347,1.96673,2342.8,2342.7,0.4185]
[1726611602946,0.42676,2342.6,2342.5,0.8213]
[1726611603150,0.42678,2342.5,2342.4,0.4063]
[1726611608143,0.4268,2342.4,2342.3,0.4267]
[1726611608346,0.42684,2342.2,2342.1,0.4123]
[1726611612151,0.42683,2342.3,2342.1,0.4123]
[1726611612348,0.42684,2342.2,2342.1,0.4123]
[1726611614950,3.2078,2342.4,2342.1,0.4123]
[1726611615155,0.42684,2342.2,2342.1,0.4123]
[1726611616051,0.42683,2342.3,2342.1,0.83915]
[1726611616247,3.2078,2342.4,2342.1,0.83915]
[1726611616448,0.42682,2342.3,2342.1,0.4123]
[1726611616957,0.42684,2342.2,2342.1,0.4123]
[1726611619756,3.2078,2342.4,2342.1,4.6819]
[1726611619951,3.63461,2342.4,2342.1,0.83914]
[1726611620651,0.42682,2342.3,2342.1,0.83914]
[1726611620854,3.63461,2342.4,2342.1,0.83914]
[1726611624262,3.63461,2342.4,2342.2,0.42684]
[1726611624654,3.2078,2342.4,2342.3,1.96682]
[1726611624966,0.4265,2342.9,2342.3,1.96682]
[1726611624967,0.42676,2342.7,2342.5,0.42677]
[1726611625253,4.58174,2342.8,2342.6,0.4077]
[1726611625959,4.58174,2342.8,2342.6,0.83446]
[1726611626260,4.155,2342.8,2342.6,0.83446]
[1726611626660,4.58173,2342.8,2342.6,0.83446]
[1726611626852,0.42675,2342.7,2342.6,0.4077]
[1726611628752,7.78954,2342.8,2342.6,0.4077]
[1726611629363,1.96675,2342.7,2342.6,0.4077]
[1726611629961,1.96675,2342.7,2342.4,0.7933]
[1726611629962,0.42678,2342.5,2342.4,0.7933]
[1726611630161,0.42684,2342.2,2342.1,0.3905]
[1726611630461,4.7478,2342.2,2341.8,0.3858]
[1726611630659,1.54,2342.0,2341.7,5.42963975]
[1726611630864,1.54,2341.8,2341.7,5.42963975]
[1726611631062,1.54,2341.8,2341.7,1.3909614]
[1726611632061,0.7889,2342.1,2341.7,1.3909614]
[1726611632062,3.75689,2342.0,2341.7,1.3909614]
[1726611632262,3.75689,2342.0,2341.7,1.24243]
[1726611633367,3.75689,2342.0,2341.7,0.8155]
[1726611634462,3.75689,2342.0,2341.7,1.24243]
[1726611634663,3.75689,2342.0,2341.7,0.8155]
[1726611635066,0.42689,2342.0,2341.7,1.24242]
[1726611636171,0.42688,2342.0,2341.7,0.8155]
[1726611636366,0.42688,2342.0,2341.7,1.24242]
[1726611638073,0.42695,2341.6,2341.2,1.11836148]
[1726611638268,0.42695,2341.6,2340.9,0.8166]
[1726611638269,0.42706,2341.0,2340.9,0.8166]
[1726611638573,0.42706,2341.0,2340.4,3.00533327]
[1726611638574,1.06769,2340.9,2340.5,1.12534843]
[1726611638778,0.42713,2340.6,2340.5,0.00698695]
[1726611639579,10.69993,2340.6,2340.5,0.00698695]
[1726611640075,4.69993,2340.6,2340.5,0.00698695]
[1726611640274,10.69993,2340.6,2340.5,0.00698695]
[1726611640466,4.69993,2340.6,2340.5,0.00698695]
[1726611642673,0.42713,2340.6,2340.5,0.00698695]
[1726611643172,4.16822,2340.7,2340.5,0.00698695]
[1726611643366,3.33,2340.7,2340.5,0.00698695]
[1726611643568,3.75711,2340.7,2340.5,0.00698695]
[1726611643875,3.33,2340.7,2340.5,0.00698695]
[1726611644178,0.42713,2340.6,2340.5,0.00698695]
[1726611644570,4.69993,2340.6,2340.5,0.00698695]
[1726611645274,3.75712,2340.7,2340.5,0.00698695]
[1726611645679,3.33,2340.7,2340.5,0.00698695]
[1726611645972,3.63489,2340.9,2340.5,0.43413695]
[1726611646172,3.63489,2340.9,2340.5,0.00698695]
[1726611646173,6.5378,2340.9,2340.5,0.00698695]
[1726611646377,0.42711,2340.7,2340.5,0.00698695]
[1726611647079,0.4271,2340.8,2340.5,0.00698695]
[1726611647273,6.5378,2340.9,2340.5,0.00698695]
[1726611647274,6.96488,2340.9,2340.5,0.00698695]
[1726611647576,6.96488,2340.9,2340.6,0.42713]
[1726611647780,6.5378,2340.9,2340.5,0.84648695]
[1726611648475,0.4271,2340.8,2340.5,1.27363695]
[1726611648871,6.96488,2340.9,2340.6,0.42713]
[1726611649474,0.42709,2340.8,2340.5,1.27362695]
[1726611650172,0.42709,2340.8,2340.6,0.42713]
[1726611650478,6.96489,2340.9,2340.6,0.42713]
[1726611650680,3.2078,2340.9,2340.6,0.42713]
[1726611650979,0.42709,2340.8,2340.6,0.42713]
[1726611651373,3.2078,2340.9,2340.7,0.4271]
[1726611651572,1.06752,2341.3,2340.5,0.84648695]
[1726611651573,7.7821,2341.2,2340.5,0.84648695]
[1726611651772,0.42705,2341.1,2340.9,0.42707]
[1726611651967,0.42706,2341.0,2340.8,0.42708]
[1726611652480,7.3628,2341.2,2340.8,0.42708]
[1726611652681,7.3628,2341.2,2340.9,0.42706]
[1726611652682,0.42704,2341.1,2340.9,0.42706]
[1726611652875,0.42706,2341.0,2340.8,0.42708]
[1726611653077,3.2078,2341.2,2340.6,3.2078]
[1726611653283,0.42705,2341.1,2340.9,0.42707]
[1726611653987,0.42705,2341.1,2341.0,0.42706]
[1726611654172,0.42705,2341.1,2340.6,3.2078]
[1726611654173,3.2078,2341.2,2340.6,4.2756]
[1726611654373,3.63483,2341.2,2341.0,0.42704]
[1726611654573,3.2078,2341.2,2341.1,0.42704]
[1726611654775,3.63483,2341.2,2341.0,0.42704]
[1726611654982,3.63483,2341.2,2341.1,0.42704]
[1726611654983,3.2078,2341.2,2341.1,0.42704]
[1726611655582,3.2078,2341.2,2341.1,4.69824]
[1726611656377,3.2078,2341.2,2341.1,5.08544]
[1726611658781,4.58195,2341.6,2341.1,4.6584]
[1726611658985,4.58195,2341.6,2341.3,0.42699]
[1726611658986,0.42695,2341.6,2341.3,0.42699]
[1726611659182,6.5378,2341.7,2341.3,0.42698]
[1726611659381,0.42695,2341.6,2341.4,0.42698]
[1726611659688,0.42699,2341.4,2341.1,0.3872]
[1726611659886,3.33,2341.3,2341.1,0.3872]
[1726611660086,3.33,2341.3,2341.1,0.81423]
[1726611660282,3.63479,2341.4,2341.1,0.3872]
[1726611660485,3.2078,2341.4,2341.3,0.427]
[1726611660886,0.42695,2341.6,2341.1,0.3872]
[1726611661092,0.42695,2341.6,2341.3,0.42699]
[1726611661984,6.5378,2341.7,2341.1,3.7172]
[1726611661985,3.2078,2341.7,2341.1,3.7172]
[1726611662294,3.2078,2341.7,2341.5,0.42696]
[1726611662697,3.63473,2341.7,2341.4,0.42697]
[1726611662902,3.2078,2341.7,2341.5,0.42696]
[1726611663506,3.2078,2341.7,2341.1,4.78476]
[1726611663804,3.2078,2341.7,2341.1,3.7172]
[1726611664193,4.03376,2342.1,2341.3,6.5378]
[1726611664399,3.2078,2342.1,2341.5,3.33]
[1726611664596,3.63466,2342.1,2341.7,0.42691]
[1726611664805,3.2078,2342.1,2341.8,0.844]
[1726611665101,3.63466,2342.1,2341.8,0.844]
[1726611665906,3.2078,2342.1,2341.9,0.42689]
[1726611666101,3.33,2342.4,2341.8,0.844]
[1726611666102,3.2078,2342.4,2341.8,0.844]
[1726611666407,3.2078,2342.4,2342.0,0.42686]
[1726611666595,3.63461,2342.4,2342.0,0.42686]
[1726611667106,0.42682,2342.3,2342.0,0.42686]
[1726611667400,3.63461,2342.4,2341.8,0.844]
[1726611667705,0.42682,2342.3,2341.8,0.844]
[1726611667893,3.2078,2342.4,2341.8,0.844]
[1726611667894,0.42688,2342.0,2341.8,0.844]
[1726611668098,3.33,2341.9,2341.8,0.4242]
[1726611668901,6.96467,2342.1,2341.8,0.85111]
[1726611669099,6.96467,2342.1,2341.8,0.4242]
[1726611670917,0.42688,2342.0,2341.8,0.4242]
[1726611671807,6.96467,2342.1,2341.8,0.85111]
[1726611672910,3.33,2341.9,2341.6,0.4264]
[1726611673108,3.33,2341.9,2341.4,0.3919]
[1726611673309,3.33,2341.9,2341.5,0.42695]
[1726611673310,0.42692,2341.8,2341.5,0.42695]
[1726611673608,3.63472,2341.8,2341.5,0.42695]
[1726611673813,0.42692,2341.8,2341.5,0.42695]
[1726611674110,0.42692,2341.8,2341.6,0.42694]
[1726611674311,3.7569,2341.9,2341.7,0.42693]
[1726611674607,0.81538,2342.0,2341.4,0.3919]
[1726611675010,0.81538,2342.0,2341.7,0.42692]
[1726611675914,0.81539,2342.0,2341.7,0.42692]
[1726611677011,0.81539,2342.0,2341.4,0.3919]
[1726611677211,0.42689,2342.0,2341.7,0.42692]
[1726611677510,6.96467,2342.1,2341.8,1.6557]
[1726611678711,6.5378,2342.1,2341.9,0.42689]
[1726611678911,6.96466,2342.1,2341.9,0.42689]
[1726611679506,3.2078,2342.1,2341.8,1.2288]
[1726611679814,3.63466,2342.1,2341.9,0.42688]
[1726611681504,0.42687,2342.0,2341.8,1.6557]
[1726611682108,3.63467,2342.1,2341.9,0.42689]
[1726611683111,3.2078,2342.1,2342.0,0.42687]
[1726611683309,0.3972,2342.3,2342.1,0.42685]
[1726611683310,0.42683,2342.3,2342.1,0.42685]
[1726611683615,0.42683,2342.3,2341.8,1.2288]
[1726611683815,4.02651,2342.4,2342.2,0.42683]
[1726611684010,0.42682,2342.3,2342.1,0.42685]
[1726611684815,0.42684,2342.2,2342.0,0.42686]
[1726611685204,0.42683,2342.3,2342.0,0.42686]
[1726611685909,6.9297,2342.4,2342.1,0.42684]
[1726611686305,7.35652,2342.4,2342.1,0.42684]
[1726611686720,0.42682,2342.3,2342.0,0.42686]
[1726611687307,0.42682,2342.3,2342.1,0.42686]
[1726611688915,0.42682,2342.3,2342.0,0.42686]
[1726611689808,0.42682,2342.3,2342.1,0.42685]
[1726611691005,3.5997,2342.4,2341.8,1.2288]
[1726611691205,3.5997,2342.4,2342.2,0.42682]
[1726611691406,4.02652,2342.4,2342.1,0.42684]
[1726611693821,4.02652,2342.4,2342.2,0.42683]
[1726611695317,4.0265,2342.4,2342.2,0.42683]
[1726611696210,7.3565,2342.4,2342.1,0.42685]
[1726611696411,7.3565,2342.4,2342.2,0.42684]
[1726611697318,7.35651,2342.4,2342.2,0.42684]
[1726611697523,6.9297,2342.4,2341.8,2.29606]
[1726611698115,7.35651,2342.4,2342.2,0.42683]
[1726611702518,0.42682,2342.3,2342.2,0.42683]
[1726611708523,0.42682,2342.3,2342.1,0.42684]
[1726611708731,0.42686,2342.1,2342.0,0.42686]
[1726611708915,0.42685,2342.2,2342.0,1.00229886]
[1726611709117,7.99672,2342.4,2342.1,0.42685]
[1726611709423,0.42683,2342.3,2342.1,0.42684]
[1726611709619,6.9297,2342.4,2342.1,0.42684]
[1726611710028,0.42684,2342.2,2342.1,0.42684]
[1726611710230,0.42685,2342.2,2342.1,0.42685]
[1726611711730,0.42684,2342.3,2342.2,0.42683]
[1726611712235,4.69643,2342.3,2342.2,0.42684]
[1726611712732,4.69643,2342.3,2341.8,2.34716148]
[1726611712733,4.2696,2342.3,2341.8,2.34716148]
[1726611712926,6.9297,2342.4,2341.9,2.61453643]
[1726611713126,0.42683,2342.3,2342.2,0.42684]
[1726611713523,4.69643,2342.3,2342.2,0.42684]
[1726611714331,5.1397,2342.4,2342.2,0.42682]
[1726611714332,3.2078,2342.4,2342.2,0.42682]
[1726611714632,3.63461,2342.4,2342.3,0.3947]
[1726611721133,3.63461,2342.4,2342.3,0.82152]
[1726611721335,3.63461,2342.4,2342.3,0.3947]
[1726611721536,4.70162,2342.4,2342.3,0.3947]
[1726611721742,0.42683,2342.3,2342.2,0.42683]
[1726611722537,3.2078,2342.4,2342.1,0.42684]
[1726611722538,0.42684,2342.2,2342.1,0.42684]
[1726611722836,0.42684,2342.2,2342.1,1.00227115]
[1726611724035,0.42684,2342.2,2342.1,0.57543115]
[1726611724238,1.49401,2342.1,2342.0,0.3923]
[1726611724441,2.38406,2342.1,2342.0,0.3923]
[1726611731743,1.96686,2342.1,2342.0,0.3923]
[1726611731944,0.42686,2342.1,2342.0,0.3923]
[1726611732144,1.96685,2342.2,2342.0,0.81917]
[1726611732456,4.7478,2342.4,2342.0,0.3923]
[1726611732647,4.7478,2342.4,2342.0,0.81916]
[1726611732648,0.42684,2342.2,2342.0,0.81916]
[1726611732941,0.42686,2342.1,2342.0,0.3923]
[1726611733145,5.17466,2342.1,2342.0,0.3923]
[1726611733647,1.96686,2342.1,2342.0,0.3923]
[1726611736656,0.42686,2342.1,2342.0,0.3923]
[1726611737952,1.49413,2341.9,2341.8,0.4195]
[1726611738146,6.24193,2341.9,2341.8,0.4195]
[1726611739446,0.42693,2341.7,2341.6,0.7751]
[1726611739652,1.96693,2341.7,2341.6,0.7751]
[1726611739853,1.96693,2341.7,2341.6,1.35063567]
[1726611740054,1.54,2341.7,2341.6,1.20205]
[1726611740255,0.42692,2341.8,2341.6,1.20205]
[1726611742043,0.42693,2341.7,2341.6,1.20205]
[1726611742449,0.42693,2341.7,2341.6,0.7751]
[1726611743157,0.42692,2341.8,2341.6,1.20205]
[1726611743357,0.42693,2341.7,2341.6,0.7751]
[1726611744260,0.42692,2341.8,2341.6,1.20205]
[1726611744453,0.42693,2341.7,2341.6,0.7751]
[1726611745350,0.42693,2341.8,2341.6,1.20204]
[1726611746660,0.42688,2342.0,2341.8,0.4269]
[1726611746952,0.42688,2342.0,2341.9,0.414]
[1726611747553,1.96688,2342.0,2341.9,0.414]
[1726611747953,1.54,2342.0,2341.9,0.414]
[1726611748656,1.96687,2342.0,2341.9,0.414]
[1726611750462,0.42687,2342.0,2341.9,0.414]
[1726611753862,0.42687,2342.1,2341.9,0.414]
[1726611754057,0.42687,2342.1,2342.0,0.8125]
[1726611764461,1.49402,2342.1,2342.0,0.8125]
[1726611764876,1.49402,2342.1,2342.0,0.4164]
[1726611765076,1.49402,2342.1,2341.7,0.4247]
[1726611765077,1.49419,2341.8,2341.7,0.4247]
[1726611765274,1.49419,2341.8,2341.7,1.00025395]
[1726611765275,6.24199,2341.8,2341.7,1.00025395]
[1726611765484,6.24199,2341.8,2341.7,0.4247]
[1726611766069,3.63471,2341.8,2341.7,0.4247]
[1726611766470,3.63471,2341.8,2341.7,1.00023654]
[1726611771973,3.63471,2341.8,2341.7,0.4247]
[1726611772377,3.63471,2341.8,2341.7,1.00025325]
[1726611773279,3.63471,2341.8,2341.7,1.00024902]
[1726611773673,3.63471,2341.8,2341.7,1.00026596]
[1726611774484,3.63471,2341.8,2341.7,0.4247]
[1726611774684,3.63471,2341.8,2341.7,1.00025534]
[1726611775974,0.42691,2341.8,2341.7,1.00025534]
[1726611776883,3.63471,2341.8,2341.7,1.00024487]
[1726611777885,3.63471,2341.8,2341.7,1.00025945]
[1726611778082,3.63471,2341.8,2341.7,0.4247]
[1726611780087,0.42691,2341.8,2341.7,0.4247]
[1726611782889,3.63471,2341.8,2341.7,0.4247]
[1726611784387,3.63471,2341.8,2341.7,1.00026505]
[1726611784581,7.61082315,2342.2,2341.7,5.27066005]
[1726611784782,5.81492,2342.2,2341.8,0.57556005]
[1726611785092,0.42688,2342.0,2341.8,0.4269]
[1726611785389,0.42688,2342.0,2341.9,0.3914]
[1726611790286,3.63468,2342.0,2341.9,0.3914]
[1726611791894,0.42687,2342.1,2341.9,1.39380382]
[1726611792083,0.42685,2342.2,2342.0,1.40288382]
[1726611792290,0.42685,2342.2,2342.1,0.97688122]
[1726611792591,0.42685,2342.2,2342.1,0.4014]
[1726611792791,5.17463,2342.3,2342.1,0.9768745]
[1726611792981,4.7478,2342.3,2342.1,0.4014]
[1726611793186,5.17464,2342.3,2342.2,0.4155]
[1726611796593,5.17464,2342.3,2342.0,0.4005]
[1726611796594,0.42686,2342.1,2342.0,0.4005]
[1726611796798,1.96686,2342.1,2342.0,0.97596201]
[1726611797388,1.96686,2342.1,2342.0,0.97597096]
[1726611797691,1.96686,2342.1,2342.0,0.97597754]
[1726611798197,1.96686,2342.1,2342.0,0.4005]
[1726611798697,1.96686,2342.1,2342.0,0.9759755]
[1726611798993,0.42686,2342.1,2342.0,0.9759755]
[1726611799796,0.42686,2342.1,2342.0,0.97596624]
[1726611800198,0.42686,2342.1,2342.0,0.4005]
[1726611800399,0.42686,2342.1,2342.0,0.82737]
[1726611800593,0.42686,2342.1,2342.0,0.97596272]
[1726611800788,0.42686,2342.1,2342.0,0.97595946]
[1726611800997,0.42686,2342.1,2342.0,0.4005]
[1726611801493,0.42686,2342.1,2342.0,0.97596674]
[1726611801692,0.42686,2342.1,2342.0,0.4005]
[1726611801890,0.42686,2342.1,2342.0,0.97595953]
[1726611802088,0.42685,2342.2,2342.0,1.40281845]
[1726611802292,0.42685,2342.2,2342.0,0.82736]
[1726611802804,3.63463,2342.3,2342.1,0.42684]
[1726611803300,3.63463,2342.3,2342.2,0.4109]
[1726611808108,0.42686,2342.1,2342.0,0.4005]
[1726611808299,0.42686,2342.1,2341.7,1.11836148]
[1726611808300,0.42691,2341.8,2341.7,1.11836148]
[1726611808501,1.96691,2341.8,2341.7,1.82681006]
[1726611808704,1.96691,2341.8,2341.7,0.4074]
[1726611809500,0.42693,2341.7,2341.6,0.8439]
[1726611809700,1.96693,2341.7,2341.6,0.4265]
[1726611811809,1.96693,2341.7,2341.5,0.4074]
[1726611811810,0.42695,2341.6,2341.5,0.4074]
[1726611811998,0.42696,2341.5,2341.4,0.4174]
[1726611812195,5.5768,2341.6,2341.4,0.4174]
[1726611812406,0.42696,2341.5,2341.4,0.4174]
[1726611813308,0.42698,2341.4,2341.3,0.8017]
[1726611814412,1.9576,2341.5,2341.3,0.8017]
[1726611814413,2.38457,2341.5,2341.3,0.8017]